[Event "Early-Titled-Tuesday-Blitz-February-06-2024"]
[Site "Chess.com"]
[Date "2024.02.06"]
[Round "3"]
[White "MightyGMpretender"]
[Black "jefferyx"]
[Result "0-1"]
[WhiteElo "2734"]
[BlackElo "3012"]
[TimeControl "180+1"]
[EndTime "8:25:45 PST"]
[Termination "jefferyx won on time"]

1. Nf3 {[%clk 0:02:55]} 1... c5 {[%clk 0:02:59.7]} 2. c4 {[%clk 0:02:53.8]} 2...
Nf6 {[%clk 0:02:59.6]} 3. Nc3 {[%clk 0:02:54.5]} 3... d5 {[%clk 0:02:59.9]} 4.
cxd5 {[%clk 0:02:54.2]} 4... Nxd5 {[%clk 0:03:00.8]} 5. e4 {[%clk 0:02:54.5]}
5... Nb4 {[%clk 0:03:01.2]} 6. Bb5+ {[%clk 0:02:52.7]} 6... N8c6 {[%clk
0:02:59.6]} 7. d4 {[%clk 0:02:46.3]} 7... cxd4 {[%clk 0:02:59.7]} 8. a3 {[%clk
0:02:43.3]} 8... dxc3 {[%clk 0:02:59.7]} 9. Qxd8+ {[%clk 0:02:43.3]} 9... Kxd8
{[%clk 0:03:00.6]} 10. axb4 {[%clk 0:02:43.5]} 10... cxb2 {[%clk 0:03:01]} 11.
Bxb2 {[%clk 0:02:43]} 11... f6 {[%clk 0:03:01.1]} 12. e5 {[%clk 0:02:28.7]}
12... Bd7 {[%clk 0:02:54.9]} 13. O-O {[%clk 0:02:11.1]} 13... Nxe5 {[%clk
0:02:53.3]} 14. Rfd1 {[%clk 0:02:11.2]} 14... Ke8 {[%clk 0:02:53.4]} 15. Be2
{[%clk 0:01:27.7]} 15... Nf7 {[%clk 0:02:35.9]} 16. Rac1 {[%clk 0:01:07]} 16...
Nd6 {[%clk 0:02:23.8]} 17. Nd4 {[%clk 0:00:41.7]} 17... e5 {[%clk 0:02:20.8]}
18. Nb3 {[%clk 0:00:41.6]} 18... Ba4 {[%clk 0:02:14]} 19. Rc3 {[%clk 0:00:24.2]}
19... Rc8 {[%clk 0:01:55.4]} 20. Rxc8+ {[%clk 0:00:09.7]} 20... Nxc8 {[%clk
0:01:56.3]} 21. Bc4 {[%clk 0:00:09.9]} 21... Nb6 {[%clk 0:01:50.8]} 22. Be6
{[%clk 0:00:01.3]} 22... Ke7 {[%clk 0:01:51]} 0-1

[Event "Early-Titled-Tuesday-Blitz-February-06-2024"]
[Site "Chess.com"]
[Date "2024.02.06"]
[Round "3"]
[White "Elegance_Riks"]
[Black "MasterKroket"]
[Result "1-0"]
[WhiteElo "2758"]
[BlackElo "2479"]
[TimeControl "180+1"]
[EndTime "8:25:47 PST"]
[Termination "Elegance_Riks won by resignation"]

1. Nf3 {[%clk 0:02:55.8]} 1... Nf6 {[%clk 0:02:59.1]} 2. c4 {[%clk 0:02:54.5]}
2... g6 {[%clk 0:02:59.3]} 3. b3 {[%clk 0:02:54.4]} 3... Bg7 {[%clk 0:02:59.5]}
4. Bb2 {[%clk 0:02:55.1]} 4... O-O {[%clk 0:02:59.8]} 5. g3 {[%clk 0:02:55.6]}
5... c6 {[%clk 0:02:59.3]} 6. Bg2 {[%clk 0:02:55.4]} 6... d5 {[%clk 0:02:59.7]}
7. O-O {[%clk 0:02:55.5]} 7... a5 {[%clk 0:02:55.9]} 8. Nc3 {[%clk 0:02:50.3]}
8... Re8 {[%clk 0:02:48.1]} 9. d4 {[%clk 0:02:47.5]} 9... Ne4 {[%clk 0:02:45.8]}
10. e3 {[%clk 0:02:40.8]} 10... Nxc3 {[%clk 0:02:42.2]} 11. Bxc3 {[%clk
0:02:41]} 11... a4 {[%clk 0:02:42.9]} 12. Qe2 {[%clk 0:02:35.3]} 12... Bg4
{[%clk 0:02:39.8]} 13. h3 {[%clk 0:02:35]} 13... Bxf3 {[%clk 0:02:40.5]} 14.
Bxf3 {[%clk 0:02:35.3]} 14... e6 {[%clk 0:02:41.2]} 15. Rfb1 {[%clk 0:02:19.7]}
15... Qc7 {[%clk 0:02:37.2]} 16. Bg2 {[%clk 0:02:09.4]} 16... Nd7 {[%clk
0:02:35.8]} 17. Rc1 {[%clk 0:02:02]} 17... f5 {[%clk 0:02:27.3]} 18. b4 {[%clk
0:02:00]} 18... Qd6 {[%clk 0:02:18.3]} 19. b5 {[%clk 0:01:56.2]} 19... h6 {[%clk
0:02:09.6]} 20. Rab1 {[%clk 0:01:53.4]} 20... Kh7 {[%clk 0:02:09.3]} 21. Bb4
{[%clk 0:01:52.5]} 21... Qb8 {[%clk 0:02:07.5]} 22. Be1 {[%clk 0:01:38.1]} 22...
Qa7 {[%clk 0:02:02.2]} 23. h4 {[%clk 0:01:37.9]} 23... Rec8 {[%clk 0:01:57.3]}
24. c5 {[%clk 0:01:28.8]} 24... Bf6 {[%clk 0:01:45.3]} 25. bxc6 {[%clk
0:01:26.6]} 25... bxc6 {[%clk 0:01:45]} 26. h5 {[%clk 0:01:26.3]} 26... g5
{[%clk 0:01:43.6]} 27. Qc2 {[%clk 0:01:26.5]} 27... Rf8 {[%clk 0:01:31.3]} 28.
g4 {[%clk 0:01:25.7]} 28... Bd8 {[%clk 0:01:27.8]} 29. Bh3 {[%clk 0:01:24.2]}
29... Nf6 {[%clk 0:01:24.7]} 30. gxf5 {[%clk 0:01:23.9]} 30... g4 {[%clk
0:01:22.9]} 31. fxe6+ {[%clk 0:01:23]} 31... Kh8 {[%clk 0:01:22.8]} 32. Bg2
{[%clk 0:01:20.7]} 32... Qg7 {[%clk 0:01:17]} 33. Qg6 {[%clk 0:01:17.1]} 33...
Qxg6 {[%clk 0:01:13.1]} 34. hxg6 {[%clk 0:01:18]} 34... Kg7 {[%clk 0:01:13.9]}
35. Rb7+ {[%clk 0:01:13.1]} 35... Kxg6 {[%clk 0:01:14.4]} 36. e7 {[%clk
0:01:13.4]} 36... Bxe7 {[%clk 0:01:14.8]} 37. Rxe7 {[%clk 0:01:13.3]} 1-0

[Event "Early-Titled-Tuesday-Blitz-February-06-2024"]
[Site "Chess.com"]
[Date "2024.02.06"]
[Round "3"]
[White "falzehope0"]
[Black "miraitrunks"]
[Result "0-1"]
[WhiteElo "2369"]
[BlackElo "2137"]
[TimeControl "180+1"]
[EndTime "8:25:49 PST"]
[Termination "miraitrunks won on time"]

1. d4 {[%clk 0:03:00.9]} 1... Nf6 {[%clk 0:02:59]} 2. e3 {[%clk 0:03:01.8]} 2...
g6 {[%clk 0:02:59.1]} 3. Bd3 {[%clk 0:02:45.2]} 3... Bg7 {[%clk 0:02:59.7]} 4.
f4 {[%clk 0:02:45.2]} 4... O-O {[%clk 0:02:30.7]} 5. Nf3 {[%clk 0:02:46.1]} 5...
d6 {[%clk 0:02:30.6]} 6. O-O {[%clk 0:02:44.1]} 6... c5 {[%clk 0:02:30.6]} 7. c3
{[%clk 0:02:31.5]} 7... Nc6 {[%clk 0:02:29.5]} 8. Bc2 {[%clk 0:02:21.6]} 8...
cxd4 {[%clk 0:02:28.2]} 9. Nxd4 {[%clk 0:02:19]} 9... Nxd4 {[%clk 0:02:26.3]}
10. Qxd4 {[%clk 0:02:17.1]} 10... Be6 {[%clk 0:02:19.9]} 11. e4 {[%clk
0:02:09.8]} 11... Rc8 {[%clk 0:02:18.1]} 12. f5 {[%clk 0:02:01.5]} 12... Bc4
{[%clk 0:02:10.5]} 13. Re1 {[%clk 0:01:47]} 13... Qb6 {[%clk 0:02:08.6]} 14.
Qxb6 {[%clk 0:01:34.4]} 14... axb6 {[%clk 0:02:09.5]} 15. Na3 {[%clk 0:01:11.8]}
15... Ba6 {[%clk 0:02:07.8]} 16. Be3 {[%clk 0:01:02.2]} 16... Nd7 {[%clk
0:02:06.7]} 17. Rad1 {[%clk 0:01:00.3]} 17... Nc5 {[%clk 0:02:06.5]} 18. Bf2
{[%clk 0:00:57.5]} 18... Rc7 {[%clk 0:01:58.1]} 19. Bg3 {[%clk 0:00:55.5]} 19...
Nd7 {[%clk 0:01:53.3]} 20. Nb1 {[%clk 0:00:19.7]} 20... Be5 {[%clk 0:01:48.4]}
0-1

[Event "Early-Titled-Tuesday-Blitz-February-06-2024"]
[Site "Chess.com"]
[Date "2024.02.06"]
[Round "3"]
[White "Russian_berezka"]
[Black "Kotofeyca"]
[Result "0-1"]
[WhiteElo "2573"]
[BlackElo "2420"]
[TimeControl "180+1"]
[EndTime "8:25:50 PST"]
[Termination "Kotofeyca won by resignation"]

1. d4 {[%clk 0:03:00.9]} 1... d5 {[%clk 0:02:59.9]} 2. c4 {[%clk 0:03:01.4]}
2... c6 {[%clk 0:03:00.6]} 3. Nc3 {[%clk 0:03:01.8]} 3... Nf6 {[%clk 0:03:00.9]}
4. Nf3 {[%clk 0:03:02.4]} 4... dxc4 {[%clk 0:03:01.2]} 5. a4 {[%clk 0:02:59.7]}
5... Bg4 {[%clk 0:03:01.7]} 6. Ne5 {[%clk 0:02:58.8]} 6... Bh5 {[%clk
0:03:02.2]} 7. f3 {[%clk 0:02:53.9]} 7... Nfd7 {[%clk 0:03:02]} 8. Nxc4 {[%clk
0:02:39.3]} 8... e5 {[%clk 0:03:02.1]} 9. e4 {[%clk 0:02:26.6]} 9... Qh4+ {[%clk
0:02:59.7]} 10. g3 {[%clk 0:02:16.4]} 10... Qf6 {[%clk 0:02:58.3]} 11. dxe5
{[%clk 0:02:15.1]} 11... Qxf3 {[%clk 0:02:58.3]} 12. Qb3 {[%clk 0:02:10.6]}
12... Nc5 {[%clk 0:02:48.4]} 13. Qc2 {[%clk 0:01:23.8]} 13... Qxh1 {[%clk
0:02:48.1]} 14. Bg5 {[%clk 0:01:04.5]} 14... Nbd7 {[%clk 0:02:33.2]} 15. b4
{[%clk 0:00:41]} 15... Ne6 {[%clk 0:02:31.2]} 16. Be3 {[%clk 0:00:40]} 16...
Bxb4 {[%clk 0:02:23.1]} 17. Rb1 {[%clk 0:00:39.7]} 17... Bxc3+ {[%clk
0:02:17.5]} 18. Qxc3 {[%clk 0:00:40.5]} 18... O-O {[%clk 0:02:05.6]} 19. Rxb7
{[%clk 0:00:39.5]} 19... Ndc5 {[%clk 0:02:03.2]} 20. Re7 {[%clk 0:00:38.1]}
20... Qxe4 {[%clk 0:01:57.5]} 21. Nd6 {[%clk 0:00:36.5]} 21... Qb1+ {[%clk
0:01:42.8]} 22. Kf2 {[%clk 0:00:36.6]} 22... Ne4+ {[%clk 0:01:35.1]} 23. Nxe4
{[%clk 0:00:36.1]} 23... Qxe4 {[%clk 0:01:36]} 24. Bd3 {[%clk 0:00:35.5]} 24...
Qf3+ {[%clk 0:01:28.3]} 0-1

[Event "Early-Titled-Tuesday-Blitz-February-06-2024"]
[Site "Chess.com"]
[Date "2024.02.06"]
[Round "3"]
[White "DarZay"]
[Black "ural58"]
[Result "0-1"]
[WhiteElo "2253"]
[BlackElo "2481"]
[TimeControl "180+1"]
[EndTime "8:25:50 PST"]
[Termination "ural58 won on time"]

1. e4 {[%clk 0:00:20.8]} 1... d5 {[%clk 0:02:58.7]} 2. exd5 {[%clk 0:00:17.3]}
2... Qxd5 {[%clk 0:02:58.5]} 3. d4 {[%clk 0:00:17]} 3... Nc6 {[%clk 0:02:57.8]}
4. Nc3 {[%clk 0:00:17.3]} 4... Qxd4 {[%clk 0:02:57.2]} 5. Qxd4 {[%clk
0:00:17.4]} 5... Nxd4 {[%clk 0:02:57.3]} 6. Bd3 {[%clk 0:00:17.7]} 6... Bf5
{[%clk 0:02:57.4]} 7. Bxf5 {[%clk 0:00:14.8]} 7... Nxf5 {[%clk 0:02:57.4]} 8.
Nd5 {[%clk 0:00:15.3]} 8... O-O-O {[%clk 0:02:56.6]} 9. c4 {[%clk 0:00:14.5]}
9... e6 {[%clk 0:02:55.9]} 10. Nc3 {[%clk 0:00:14.4]} 10... Bb4 {[%clk
0:02:55.9]} 11. Bf4 {[%clk 0:00:14.7]} 11... Bxc3+ {[%clk 0:02:54.4]} 12. bxc3
{[%clk 0:00:15.1]} 12... e5 {[%clk 0:02:54.1]} 13. Bd2 {[%clk 0:00:11.2]} 13...
Nf6 {[%clk 0:02:51.1]} 14. Ne2 {[%clk 0:00:11.1]} 14... Ne4 {[%clk 0:02:49.9]}
15. Rd1 {[%clk 0:00:08.8]} 15... Rd6 {[%clk 0:02:46.1]} 16. f3 {[%clk 0:00:09]}
16... Nxd2 {[%clk 0:02:45.9]} 17. Rxd2 {[%clk 0:00:09.3]} 17... Rhd8 {[%clk
0:02:45.9]} 18. Rxd6 {[%clk 0:00:09]} 18... Nxd6 {[%clk 0:02:46.1]} 19. c5
{[%clk 0:00:08.2]} 19... Nc4 {[%clk 0:02:44.6]} 20. Kf2 {[%clk 0:00:08.5]} 20...
Rd2 {[%clk 0:02:43.5]} 21. a4 {[%clk 0:00:07.7]} 21... a5 {[%clk 0:02:42.8]} 22.
Rb1 {[%clk 0:00:06.3]} 22... Ra2 {[%clk 0:02:40]} 23. Rb5 {[%clk 0:00:05.8]}
23... c6 {[%clk 0:02:38.5]} 24. Rb1 {[%clk 0:00:04.6]} 24... Rxa4 {[%clk
0:02:37.6]} 25. Ng3 {[%clk 0:00:04.7]} 25... Ra2+ {[%clk 0:02:35.8]} 26. Kg1
{[%clk 0:00:03.8]} 26... a4 {[%clk 0:02:27.3]} 27. Ne4 {[%clk 0:00:02.6]} 27...
f5 {[%clk 0:02:26.2]} 28. Ng5 {[%clk 0:00:02.3]} 28... a3 {[%clk 0:02:21.5]} 29.
Ne6 {[%clk 0:00:02.4]} 29... Rb2 {[%clk 0:02:13.9]} 30. Rd1 {[%clk 0:00:02.4]}
30... Rxg2+ {[%clk 0:02:13.4]} 31. Kh1 {[%clk 0:00:01.1]} 31... Rd2 {[%clk
0:02:13.4]} 0-1

[Event "Early-Titled-Tuesday-Blitz-February-06-2024"]
[Site "Chess.com"]
[Date "2024.02.06"]
[Round "3"]
[White "ilushka"]
[Black "Kleyton_Lima"]
[Result "1-0"]
[WhiteElo "2423"]
[BlackElo "2581"]
[TimeControl "180+1"]
[EndTime "8:25:58 PST"]
[Termination "ilushka won by checkmate"]

1. Nf3 {[%clk 0:03:00.9]} 1... c5 {[%clk 0:02:58.9]} 2. b3 {[%clk 0:03:00.5]}
2... g6 {[%clk 0:02:49.3]} 3. Bb2 {[%clk 0:03:00.7]} 3... Nf6 {[%clk 0:02:50.2]}
4. Bxf6 {[%clk 0:02:58.6]} 4... exf6 {[%clk 0:02:51.1]} 5. c4 {[%clk 0:02:58.6]}
5... Bg7 {[%clk 0:02:50.3]} 6. Nc3 {[%clk 0:02:58.6]} 6... O-O {[%clk
0:02:50.8]} 7. g3 {[%clk 0:02:57.9]} 7... f5 {[%clk 0:02:51.3]} 8. Rc1 {[%clk
0:02:56.2]} 8... Nc6 {[%clk 0:02:50.2]} 9. Bg2 {[%clk 0:02:56.2]} 9... d6 {[%clk
0:02:50.7]} 10. O-O {[%clk 0:02:56.2]} 10... h5 {[%clk 0:02:50.5]} 11. h4 {[%clk
0:02:55.8]} 11... f4 {[%clk 0:02:49.7]} 12. gxf4 {[%clk 0:02:51.6]} 12... Bg4
{[%clk 0:02:49.3]} 13. e3 {[%clk 0:02:40.3]} 13... Ne7 {[%clk 0:02:46.8]} 14.
Qc2 {[%clk 0:02:28.4]} 14... Nf5 {[%clk 0:02:45.6]} 15. Ng5 {[%clk 0:02:05.1]}
15... Nxh4 {[%clk 0:02:44.9]} 16. Bxb7 {[%clk 0:02:03]} 16... Rb8 {[%clk
0:02:44.7]} 17. Bd5 {[%clk 0:02:03]} 17... Bf6 {[%clk 0:02:37.4]} 18. Nce4
{[%clk 0:02:01]} 18... Kg7 {[%clk 0:02:25.7]} 19. Nxf6 {[%clk 0:01:57.9]} 19...
Qxf6 {[%clk 0:02:24.7]} 20. Qc3 {[%clk 0:01:49.4]} 20... Qxc3 {[%clk 0:02:24]}
21. Rxc3 {[%clk 0:01:45]} 21... f6 {[%clk 0:02:23.8]} 22. Ne6+ {[%clk
0:01:35.2]} 22... Bxe6 {[%clk 0:02:22.8]} 23. Bxe6 {[%clk 0:01:36.1]} 23... Nf3+
{[%clk 0:02:19.3]} 24. Kg2 {[%clk 0:01:34.9]} 24... Nxd2 {[%clk 0:02:20.2]} 25.
Rd1 {[%clk 0:01:32.6]} 25... Ne4 {[%clk 0:02:20.4]} 26. Rcd3 {[%clk 0:01:32.4]}
26... Rfe8 {[%clk 0:02:11]} 27. Bd5 {[%clk 0:01:31.7]} 27... Rbd8 {[%clk
0:02:04.6]} 28. f3 {[%clk 0:01:28.1]} 28... f5 {[%clk 0:01:59.2]} 29. fxe4
{[%clk 0:01:27.8]} 29... fxe4 {[%clk 0:01:59.8]} 30. R3d2 {[%clk 0:01:27.6]}
30... Rf8 {[%clk 0:01:57.9]} 31. Rf2 {[%clk 0:01:26.3]} 31... Rfe8 {[%clk
0:01:53.2]} 32. Rdf1 {[%clk 0:01:23.8]} 32... Kf6 {[%clk 0:01:53]} 33. Kg3
{[%clk 0:01:23.1]} 33... Re7 {[%clk 0:01:51.8]} 34. Kh4 {[%clk 0:01:23.2]} 34...
a5 {[%clk 0:01:51]} 35. Rg1 {[%clk 0:01:22.8]} 35... Rg7 {[%clk 0:01:49.3]} 36.
Rfg2 {[%clk 0:01:22.2]} 36... Rb8 {[%clk 0:01:44.8]} 37. Rg5 {[%clk 0:01:19.8]}
37... Rb4 {[%clk 0:01:42.6]} 38. f5 {[%clk 0:01:18]} 38... a4 {[%clk 0:01:38.7]}
39. Rxg6+ {[%clk 0:01:15.1]} 39... Rxg6 {[%clk 0:01:38.6]} 40. fxg6 {[%clk
0:01:15.3]} 40... Kg7 {[%clk 0:01:38.2]} 41. Kxh5 {[%clk 0:00:54.6]} 41... axb3
{[%clk 0:01:38]} 42. axb3 {[%clk 0:00:55.3]} 42... Rxb3 {[%clk 0:01:37.4]} 43.
Rf1 {[%clk 0:00:55.4]} 43... Rxe3 {[%clk 0:01:37.6]} 44. Rf7+ {[%clk 0:00:55.1]}
44... Kh8 {[%clk 0:01:38.2]} 45. Rh7# {[%clk 0:00:54.8]} 1-0

[Event "Early-Titled-Tuesday-Blitz-February-06-2024"]
[Site "Chess.com"]
[Date "2024.02.06"]
[Round "3"]
[White "margarita_2703"]
[Black "deepfear"]
[Result "1-0"]
[WhiteElo "2336"]
[BlackElo "1960"]
[TimeControl "180+1"]
[EndTime "8:26:01 PST"]
[Termination "margarita_2703 won by resignation"]

1. h3 {[%clk 0:03:00.9]} 1... g6 {[%clk 0:02:55.4]} 2. e4 {[%clk 0:02:58.5]}
2... c5 {[%clk 0:02:54]} 3. c3 {[%clk 0:02:57]} 3... Bg7 {[%clk 0:02:47.2]} 4.
Nf3 {[%clk 0:02:52.9]} 4... d5 {[%clk 0:02:41.2]} 5. e5 {[%clk 0:02:50.4]} 5...
d4 {[%clk 0:02:05.2]} 6. Bb5+ {[%clk 0:02:48.3]} 6... Bd7 {[%clk 0:02:01.8]} 7.
Bxd7+ {[%clk 0:02:44.5]} 7... Qxd7 {[%clk 0:02:02.1]} 8. d3 {[%clk 0:02:41.6]}
8... Nc6 {[%clk 0:01:50.6]} 9. Qe2 {[%clk 0:02:39.3]} 9... e6 {[%clk 0:01:48.6]}
10. O-O {[%clk 0:02:36.9]} 10... Nge7 {[%clk 0:01:45.9]} 11. c4 {[%clk
0:02:36.3]} 11... O-O {[%clk 0:01:44.2]} 12. a3 {[%clk 0:02:35.3]} 12... h6
{[%clk 0:01:34.1]} 13. Re1 {[%clk 0:02:32.8]} 13... g5 {[%clk 0:01:22.7]} 14.
Nbd2 {[%clk 0:02:27.3]} 14... Ng6 {[%clk 0:01:11.9]} 15. b4 {[%clk 0:02:15.5]}
15... b6 {[%clk 0:01:08.6]} 16. bxc5 {[%clk 0:02:13.9]} 16... bxc5 {[%clk
0:01:08.5]} 17. Ne4 {[%clk 0:02:13.5]} 17... Qe7 {[%clk 0:00:57.4]} 18. Rb1
{[%clk 0:02:09.8]} 18... Ncxe5 {[%clk 0:00:44.7]} 19. Nxe5 {[%clk 0:02:10.7]}
19... Bxe5 {[%clk 0:00:43.1]} 20. Rb5 {[%clk 0:02:07.9]} 20... Rac8 {[%clk
0:00:38.7]} 21. a4 {[%clk 0:02:07.3]} 21... Nf4 {[%clk 0:00:35.3]} 22. Bxf4
{[%clk 0:02:06.2]} 22... Bxf4 {[%clk 0:00:35.5]} 23. Qh5 {[%clk 0:02:06]} 23...
Kg7 {[%clk 0:00:29.8]} 24. g3 {[%clk 0:02:05.6]} 24... Be5 {[%clk 0:00:21.3]}
25. Qe2 {[%clk 0:01:53]} 25... Bd6 {[%clk 0:00:17.4]} 26. Kg2 {[%clk 0:01:52.7]}
26... a6 {[%clk 0:00:15.6]} 27. Rb6 {[%clk 0:01:51.9]} 27... a5 {[%clk 0:00:09]}
28. Nxd6 {[%clk 0:01:50.7]} 28... Rfd8 {[%clk 0:00:05.3]} 29. Nxc8 {[%clk
0:01:50.4]} 29... Rxc8 {[%clk 0:00:05.3]} 30. Reb1 {[%clk 0:01:51]} 1-0

[Event "Early-Titled-Tuesday-Blitz-February-06-2024"]
[Site "Chess.com"]
[Date "2024.02.06"]
[Round "3"]
[White "arenal72"]
[Black "GMCorinnaKopff"]
[Result "0-1"]
[WhiteElo "2545"]
[BlackElo "2362"]
[TimeControl "180+1"]
[EndTime "8:26:05 PST"]
[Termination "GMCorinnaKopff won by resignation"]

1. Nf3 {[%clk 0:03:00.9]} 1... Nf6 {[%clk 0:02:59.1]} 2. g3 {[%clk 0:03:00.9]}
2... g6 {[%clk 0:02:59.4]} 3. Bg2 {[%clk 0:03:01.6]} 3... Bg7 {[%clk 0:03:00.1]}
4. O-O {[%clk 0:03:02]} 4... O-O {[%clk 0:03:01]} 5. d3 {[%clk 0:02:55.2]} 5...
d6 {[%clk 0:03:01]} 6. e4 {[%clk 0:02:55]} 6... c5 {[%clk 0:02:59.1]} 7. h3
{[%clk 0:02:46.4]} 7... Nc6 {[%clk 0:02:58.8]} 8. c3 {[%clk 0:02:45]} 8... Rb8
{[%clk 0:02:58.8]} 9. Qe2 {[%clk 0:02:40.6]} 9... b5 {[%clk 0:02:56.3]} 10. d4
{[%clk 0:02:40.6]} 10... Qb6 {[%clk 0:02:53.6]} 11. d5 {[%clk 0:02:34.9]} 11...
Na5 {[%clk 0:02:48.4]} 12. Re1 {[%clk 0:02:21.7]} 12... b4 {[%clk 0:02:42.1]}
13. c4 {[%clk 0:02:13.3]} 13... b3 {[%clk 0:02:39.2]} 14. Bd2 {[%clk 0:02:04.2]}
14... bxa2 {[%clk 0:02:32]} 15. Rxa2 {[%clk 0:01:41.1]} 15... Nb3 {[%clk
0:02:29.5]} 16. Bc3 {[%clk 0:01:26.1]} 16... Nd7 {[%clk 0:02:18]} 17. e5 {[%clk
0:01:10.8]} 17... Nxe5 {[%clk 0:02:10.4]} 18. Nxe5 {[%clk 0:01:09]} 18... Bxe5
{[%clk 0:02:09.3]} 19. Bxe5 {[%clk 0:01:08.4]} 19... dxe5 {[%clk 0:02:07.8]} 20.
Qxe5 {[%clk 0:01:08.8]} 20... Bf5 {[%clk 0:02:00.4]} 21. Nc3 {[%clk 0:01:03.1]}
21... Nd4 {[%clk 0:01:52.5]} 22. h4 {[%clk 0:00:29.9]} 22... h5 {[%clk
0:01:42.9]} 23. Rea1 {[%clk 0:00:21.3]} 23... Qb4 {[%clk 0:01:24.5]} 24. Bf1
{[%clk 0:00:15.6]} 24... Nf3+ {[%clk 0:01:24.3]} 0-1

[Event "Early-Titled-Tuesday-Blitz-February-06-2024"]
[Site "Chess.com"]
[Date "2024.02.06"]
[Round "3"]
[White "jaskol95"]
[Black "leschebaza"]
[Result "1-0"]
[WhiteElo "2608"]
[BlackElo "2415"]
[TimeControl "180+1"]
[EndTime "8:26:10 PST"]
[Termination "jaskol95 won by resignation"]

1. e4 {[%clk 0:03:00.9]} 1... e6 {[%clk 0:02:57.6]} 2. Nf3 {[%clk 0:03:01]} 2...
d5 {[%clk 0:02:58.1]} 3. e5 {[%clk 0:03:01.7]} 3... c5 {[%clk 0:02:58.3]} 4. b4
{[%clk 0:03:02.2]} 4... cxb4 {[%clk 0:02:57.9]} 5. a3 {[%clk 0:03:01.3]} 5...
bxa3 {[%clk 0:02:58.2]} 6. d4 {[%clk 0:03:01.3]} 6... Bd7 {[%clk 0:02:57.8]} 7.
c3 {[%clk 0:03:01.2]} 7... Ne7 {[%clk 0:02:52.6]} 8. Bd3 {[%clk 0:03:00.7]} 8...
Nf5 {[%clk 0:02:46.4]} 9. Nxa3 {[%clk 0:02:58.5]} 9... Nc6 {[%clk 0:02:45.9]}
10. Nc2 {[%clk 0:02:58.6]} 10... Rc8 {[%clk 0:02:45.5]} 11. Ne3 {[%clk
0:02:55.1]} 11... Nxe3 {[%clk 0:02:39.2]} 12. fxe3 {[%clk 0:02:54]} 12... Na5
{[%clk 0:02:38.8]} 13. Bd2 {[%clk 0:02:43.5]} 13... Nc4 {[%clk 0:02:37.5]} 14.
Rxa7 {[%clk 0:02:27.9]} 14... Qb6 {[%clk 0:02:34.9]} 15. Ra1 {[%clk 0:02:27.1]}
15... Be7 {[%clk 0:02:31.8]} 16. O-O {[%clk 0:02:27.2]} 16... f5 {[%clk
0:02:24.3]} 17. exf6 {[%clk 0:02:24.6]} 17... Bxf6 {[%clk 0:02:24.1]} 18. Qc2
{[%clk 0:02:07.7]} 18... Nxd2 {[%clk 0:01:59.8]} 19. Nxd2 {[%clk 0:02:05.8]}
19... Bb5 {[%clk 0:01:55.7]} 20. Qb3 {[%clk 0:01:37.4]} 20... O-O {[%clk
0:01:47.2]} 21. Bxb5 {[%clk 0:01:30.5]} 21... Bg5 {[%clk 0:01:41.9]} 22. c4
{[%clk 0:01:16.6]} 22... dxc4 {[%clk 0:01:37.5]} 23. Nxc4 {[%clk 0:01:14.3]}
23... Qc7 {[%clk 0:01:23.5]} 24. Ne5 {[%clk 0:01:10.3]} 24... Kh8 {[%clk
0:01:23.2]} 25. Bc4 {[%clk 0:01:03.4]} 25... Qd6 {[%clk 0:01:04.1]} 26. Bxe6
{[%clk 0:00:57.7]} 26... Bxe3+ {[%clk 0:01:03.4]} 27. Qxe3 {[%clk 0:00:53.3]}
27... Qxe6 {[%clk 0:01:02.4]} 28. Nf7+ {[%clk 0:00:52.5]} 28... Qxf7 {[%clk
0:01:02.6]} 29. Rxf7 {[%clk 0:00:52.7]} 29... Rxf7 {[%clk 0:01:03.5]} 30. Rc1
{[%clk 0:00:46.4]} 30... Re8 {[%clk 0:01:02.3]} 31. Qxe8+ {[%clk 0:00:46.2]} 1-0

[Event "Early-Titled-Tuesday-Blitz-February-06-2024"]
[Site "Chess.com"]
[Date "2024.02.06"]
[Round "3"]
[White "RCone"]
[Black "sonicdravise"]
[Result "0-1"]
[WhiteElo "2420"]
[BlackElo "2617"]
[TimeControl "180+1"]
[EndTime "8:26:12 PST"]
[Termination "sonicdravise won by checkmate"]

1. e4 {[%clk 0:03:00.9]} 1... c5 {[%clk 0:02:59.1]} 2. Nc3 {[%clk 0:03:00.1]}
2... Nc6 {[%clk 0:02:59.3]} 3. Bb5 {[%clk 0:02:58.6]} 3... Nd4 {[%clk
0:02:57.9]} 4. Nf3 {[%clk 0:02:59.3]} 4... g6 {[%clk 0:02:56.6]} 5. O-O {[%clk
0:02:57.1]} 5... Bg7 {[%clk 0:02:55.4]} 6. Nxd4 {[%clk 0:02:56.6]} 6... cxd4
{[%clk 0:02:54.5]} 7. Ne2 {[%clk 0:02:57.1]} 7... a6 {[%clk 0:02:53]} 8. Bc4
{[%clk 0:02:52.9]} 8... b5 {[%clk 0:02:40.1]} 9. Bb3 {[%clk 0:02:46.6]} 9... Bb7
{[%clk 0:02:37.1]} 10. d3 {[%clk 0:02:46.7]} 10... e6 {[%clk 0:02:27.3]} 11. a4
{[%clk 0:02:36]} 11... Ne7 {[%clk 0:02:26.6]} 12. f4 {[%clk 0:02:32.4]} 12...
O-O {[%clk 0:02:25.1]} 13. Bd2 {[%clk 0:02:28]} 13... f5 {[%clk 0:02:13.5]} 14.
e5 {[%clk 0:02:27]} 14... Nc6 {[%clk 0:01:57]} 15. axb5 {[%clk 0:02:26]} 15...
axb5 {[%clk 0:01:56.9]} 16. Rxa8 {[%clk 0:02:22.3]} 16... Qxa8 {[%clk
0:01:56.8]} 17. Qa1 {[%clk 0:02:22.5]} 17... Qe8 {[%clk 0:01:44.3]} 18. Qa2
{[%clk 0:02:14]} 18... g5 {[%clk 0:01:40.4]} 19. fxg5 {[%clk 0:01:59.7]} 19...
Nxe5 {[%clk 0:01:27.4]} 20. Nxd4 {[%clk 0:01:53.4]} 20... Qh5 {[%clk 0:01:26.6]}
21. Ne2 {[%clk 0:01:41.4]} 21... Qxe2 {[%clk 0:01:24.6]} 22. Rf2 {[%clk
0:01:37.6]} 22... Qd1+ {[%clk 0:01:23.4]} 23. Rf1 {[%clk 0:01:01.5]} 23... Qxd2
{[%clk 0:01:20]} 24. Rf2 {[%clk 0:01:02.1]} 24... Qe1+ {[%clk 0:01:06.4]} 25.
Rf1 {[%clk 0:01:01.2]} 25... Qe3+ {[%clk 0:01:07]} 26. Rf2 {[%clk 0:00:59.5]}
26... Ng4 {[%clk 0:01:04]} 27. Bxe6+ {[%clk 0:00:57.5]} 27... dxe6 {[%clk
0:01:01.9]} 28. Qxe6+ {[%clk 0:00:56.6]} 28... Qxe6 {[%clk 0:01:01.8]} 29. h3
{[%clk 0:00:54.5]} 29... Qe1+ {[%clk 0:01:00.1]} 30. Rf1 {[%clk 0:00:54.3]}
30... Qe3+ {[%clk 0:00:59.8]} 31. Kh1 {[%clk 0:00:53.5]} 31... Qxh3+ {[%clk
0:00:59.8]} 32. Kg1 {[%clk 0:00:52.8]} 32... Qxg2# {[%clk 0:01:00.7]} 0-1